fUST/lending_fUST_20250623
["ID","MTS","AMOUNT","RATE_DAILY","PERIOD"]
[367012995,1750618035499,-1500.0,0.0002627,28]
[367012997,1750618035526,-1500.0,0.0002627,28]
[367012999,1750618035555,-1500.0,0.0002627,28]
[367013001,1750618035582,-1500.0,0.0002627,28]
[367013003,1750618035608,-1500.0,0.0002627,28]
[367013004,1750618035632,-1500.0,0.0002627,28]
[367013006,1750618035658,-1500.0,0.0002627,28]
[367013008,1750618035683,-1500.0,0.0002627,28]
[367013010,1750618035707,-1500.0,0.0002627,28]
[367013012,1750618035732,-1500.0,0.0002627,28]
[367013013,1750618035758,-1500.0,0.0002627,28]
[367013014,1750618035785,-1500.0,0.0002627,28]
[367013015,1750618035810,-1500.0,0.0002627,28]
[367013016,1750618035838,-1500.0,0.0002627,28]
[367013017,1750618035863,-1500.0,0.0002627,28]
[367013018,1750618035888,-1500.0,0.0002627,28]
[367013019,1750618035912,-1500.0,0.0002627,28]
[367013021,1750618035937,-1500.0,0.0002627,28]
[367013023,1750618035962,-1500.0,0.0002627,28]
[367013025,1750618035987,-1500.0,0.0002627,28]
[367013027,1750618036013,-1500.0,0.0002627,28]
[367013029,1750618036039,-1500.0,0.0002627,28]
[367013030,1750618036064,-1500.0,0.0002627,28]
[367013032,1750618036090,-1500.0,0.0002627,28]
[367013034,1750618036115,-1500.0,0.0002627,28]
[367013036,1750618036140,-1500.0,0.0002627,28]
[367013038,1750618036165,-1500.0,0.0002627,28]
[367013040,1750618036190,-1500.0,0.0002627,28]
[367013041,1750618036214,-1500.0,0.0002627,28]
[367013043,1750618036239,-1500.0,0.0002627,28]
[367013045,1750618036263,-1500.0,0.0002627,28]
[367013047,1750618036287,-1500.0,0.0002627,28]
[367013049,1750618036312,-1500.0,0.0002627,28]
[367013050,1750618036338,-1500.0,0.0002627,28]
[367013052,1750618036363,-1500.0,0.0002627,28]
[367013054,1750618036389,-1500.0,0.0002627,28]
[367013056,1750618036414,-1500.0,0.0002627,28]
[367013058,1750618036439,-1500.0,0.0002627,28]
[367013065,1750618036630,-1500.0,0.0002627,28]
[367013067,1750618036657,-1500.0,0.0002627,28]
[367013069,1750618036682,-1500.0,0.0002627,28]
[367013070,1750618036707,-1500.0,0.0002627,28]
[367013072,1750618036733,-1500.0,0.0002627,28]
[367013074,1750618036758,-1500.0,0.0002627,28]
[367013076,1750618036785,-1500.0,0.0002627,28]
[367013078,1750618036811,-1500.0,0.0002627,28]
[367013080,1750618036837,-1500.0,0.0002627,28]
[367013081,1750618036863,-1500.0,0.0002627,28]
[367013083,1750618036889,-1500.0,0.0002627,28]
[367013085,1750618036913,-1500.0,0.0002627,28]
[367013087,1750618036939,-1500.0,0.0002627,28]
[367013089,1750618036965,-1500.0,0.0002627,28]
[367013090,1750618036990,-1500.0,0.0002627,28]
[367013092,1750618037015,-1500.0,0.0002627,28]
[367013094,1750618037040,-1500.0,0.0002627,28]
[367013096,1750618037066,-1500.0,0.0002627,28]
[367013098,1750618037094,-1500.0,0.0002627,28]
[367013100,1750618037120,-1500.0,0.0002627,28]
[367013101,1750618037148,-1500.0,0.0002627,28]
[367013103,1750618037176,-1500.0,0.0002627,28]
[367013105,1750618037203,-1500.0,0.0002627,28]
[367013107,1750618037229,-1500.0,0.0002627,28]
[367013109,1750618037255,-1500.0,0.0002627,28]
[367013111,1750618037281,-1500.0,0.0002627,28]
[367013112,1750618037309,-1500.0,0.0002627,28]
[367013114,1750618037336,-1500.0,0.0002627,28]
[367013116,1750618037364,-1500.0,0.0002627,28]
[367013118,1750618037391,-1500.0,0.0002627,28]
[367013120,1750618037419,-1500.0,0.0002627,28]
[367013121,1750618037445,-1500.0,0.0002627,28]
[367013123,1750618037473,-1500.0,0.0002627,28]
[367013125,1750618037499,-1500.0,0.0002627,28]
[367013127,1750618037530,-1500.0,0.0002627,28]
[367013129,1750618037559,-1500.0,0.0002627,28]
[367013131,1750618037584,-1500.0,0.0002627,28]
[367013132,1750618037609,-1500.0,0.0002627,28]
[367013134,1750618037636,-1500.0,0.0002627,28]
[367013136,1750618037661,-1500.0,0.0002627,28]
[367013138,1750618037690,-1500.0,0.0002627,28]
[367013140,1750618037717,-1500.0,0.0002627,28]
[367013141,1750618037743,-1500.0,0.0002627,28]
[367013143,1750618037768,-1500.0,0.0002627,28]
[367013145,1750618037793,-1500.0,0.0002627,28]
[367013147,1750618037819,-1500.0,0.0002627,28]
[367013149,1750618037844,-1500.0,0.0002627,28]
[367013150,1750618037869,-1500.0,0.0002627,28]
[367013152,1750618037897,-1500.0,0.0002627,28]
[367013154,1750618037924,-1500.0,0.0002627,28]
[367013156,1750618037949,-1500.0,0.0002627,28]
[367013158,1750618037974,-1500.0,0.0002627,28]
[367013159,1750618037998,-1500.0,0.0002627,28]
[367013161,1750618038022,-1500.0,0.0002627,28]
[367013163,1750618038049,-1500.0,0.0002627,28]
[367013165,1750618038073,-1500.0,0.0002627,28]
[367013167,1750618038097,-1500.0,0.0002627,28]
[367013169,1750618038122,-1500.0,0.0002627,28]
[367013170,1750618038147,-1500.0,0.0002627,28]
[367013172,1750618038174,-1500.0,0.0002627,28]
[367013174,1750618038199,-1500.0,0.0002627,28]
[367013176,1750618038227,-500.0,0.00026301,30]
[367013178,1750618038267,-2708.10418126,0.00026383,15]
[367013180,1750618038293,-500.0,0.00026413,14]
[367013182,1750618038318,-200.0,0.00026532,120]
[367013184,1750618038350,-2708.10418126,0.00026555,15]
[367013186,1750618038380,-1729.28,0.000266,31]
[367013187,1750618038408,-1729.28,0.000266,31]
[367013189,1750618038437,-1729.28,0.000266,31]
[367013191,1750618038468,-1729.28,0.000266,31]
[367013193,1750618038497,-1729.28,0.000266,31]
[367013195,1750618038533,-1729.28,0.000266,31]
[367013197,1750618038564,-1729.28,0.000266,31]
[367013199,1750618038594,-1729.28,0.000266,31]
[367013201,1750618038623,-1729.28,0.000266,31]
[367013203,1750618038654,-1729.28,0.000266,31]
[367013205,1750618038684,-1729.28,0.000266,31]
[367013207,1750618038713,-1729.28,0.000266,31]
[367013208,1750618038743,-200.0,0.00026618,120]
[367013209,1750618038778,-2708.10418126,0.00026728,15]
[367013210,1750618038807,-5000.0,0.00026779,11]
[367013211,1750618038835,-5000.0,0.00026779,12]
[367013212,1750618038861,-5000.0,0.00026779,13]
[367013213,1750618038888,-500.0,0.00026849,30]
[367013214,1750618038920,-2708.10418126,0.000269,16]
[367013215,1750618038946,-524.33378051,0.00026961,15]
[367013216,1750618038972,-1112.0819,0.00027,120]
[367013217,1750618038998,-1000.0,0.00027,27]
[367013218,1750618039023,-200.0,0.0002702,120]
[367013219,1750618039051,-200.0,0.00027376,120]
[367013220,1750618039076,-500.0,0.00027397,30]
[367013221,1750618039104,-204.9712167,0.00027397,120]
[367013223,1750618039131,-822.74056239,0.000275,30]
[367013225,1750618039157,-500.0,0.00027582,17]
[367013231,1750618039342,-365.8215413,0.00027676,30]
[367013233,1750618039368,-365.8215413,0.00027676,30]
[367013235,1750618039394,-365.8215413,0.00027676,30]
[367013237,1750618039420,-500.0,0.00027782,25]
[367013239,1750618039445,-200.0,0.00027827,30]
[367013240,1750618039471,-200.0,0.00027827,30]
[367013242,1750618039496,-200.0,0.00027827,30]
[367013244,1750618039522,-200.0,0.0002789,20]
[367013246,1750618039551,-659.3,0.00027914,30]
[367013248,1750618039578,-552.68337931,0.00027945,30]
[367013249,1750618039604,-500.0,0.00027982,15]
[367013251,1750618039631,-2000.0,0.00028,120]
[367013253,1750618039656,-836.56272071,0.00028,10]
[367013255,1750618039681,-160.0,0.00028,10]
[367013257,1750618039706,-425.01221603,0.00028,10]
[367013258,1750618039732,-524.02598587,0.00028,10]
[367013260,1750618039757,-524.02598587,0.00028,10]
[367013262,1750618039783,-846.39664074,0.00028,10]
[367013264,1750618039808,-846.39664074,0.00028,10]
[367013266,1750618039835,-213.59462818,0.00028,10]
[367013267,1750618039860,-176.815034,0.00028,30]
[367013269,1750618039886,-158.698644,0.00028,30]
[367013271,1750618039910,-230.14598372,0.00028,10]
[367013273,1750618039935,-160.0,0.00028,10]
[367013274,1750618039958,-400.0,0.00028,30]
[367013275,1750618039984,-200.0,0.00028114,120]
[367013276,1750618040009,-500.0,0.00028182,28]
[367013277,1750618040036,-200.0,0.00028227,120]
[367013278,1750618040060,-206.0,0.0002832,30]
[367013279,1750618040087,-500.0,0.00028382,23]
[367013280,1750618040112,-1112.0819,0.000284,120]
[367013281,1750618040137,-500.0,0.00028582,15]
[367013282,1750618040166,-1729.28,0.000286,31]
[367013283,1750618040195,-1729.28,0.000286,31]
[367013284,1750618040224,-1729.28,0.000286,31]
[367013285,1750618040252,-1729.28,0.000286,31]
[367013286,1750618040279,-1729.28,0.000286,31]
[367013287,1750618040308,-1729.28,0.000286,31]
[367013288,1750618040335,-1729.28,0.000286,31]
[367013289,1750618040363,-1729.28,0.000286,31]
[367013290,1750618040390,-1729.28,0.000286,31]
[367013291,1750618040419,-1729.28,0.000286,31]
[367013292,1750618040447,-1729.28,0.000286,31]
[367013293,1750618040479,-1729.28,0.000286,31]
[367013294,1750618040509,-1729.28,0.000286,31]
[367013295,1750618040542,-1729.28,0.000286,31]
[367013296,1750618040574,-1729.28,0.000286,31]
[367013297,1750618040605,-1729.28,0.000286,31]
[367013298,1750618040635,-1729.28,0.000286,31]
[367013299,1750618040666,-1729.28,0.000286,31]
[367013300,1750618040696,-1729.28,0.000286,31]
[367013301,1750618040726,-1729.28,0.000286,31]
[367013302,1750618040756,-1729.28,0.000286,31]
[367013303,1750618040788,-1729.28,0.000286,31]
[367013304,1750618040818,-1729.28,0.000286,31]
[367013305,1750618040847,-1729.28,0.000286,31]
[367013306,1750618040875,-200.0,0.00028754,120]
[367013307,1750618040900,-500.0,0.00028782,25]
[367013308,1750618040927,-200.0,0.00028866,120]
[367013309,1750618040953,-500.0,0.00028982,28]
[367013310,1750618040978,-2014.76365106,0.00029,10]
[367013311,1750618041004,-1000.0,0.00029,29]
[367013312,1750618041030,-209.72002,0.00029,120]
[367013313,1750618041055,-836.56272071,0.00029,10]
[367013314,1750618041080,-160.0,0.00029,10]
[367013315,1750618041105,-425.01221603,0.00029,10]
[367013316,1750618041129,-213.59462818,0.00029,120]
[367013317,1750618041154,-230.14598372,0.00029,10]
[367013318,1750618041178,-160.0,0.00029,10]
[367013319,1750618041203,-177.3077519,0.00029038,30]
[367013320,1750618041226,-153.0,0.00029038,30]
[367013321,1750618041251,-159.1115641,0.00029038,30]
[367013322,1750618041275,-159.1115641,0.00029038,30]
[367013323,1750618041299,-153.0,0.00029038,30]
[367013324,1750618041324,-177.3077519,0.00029038,30]
[367013325,1750618041349,-574.6497757,0.00029038,30]
[367013326,1750618041374,-177.3077519,0.00029038,30]
[367013327,1750618041399,-153.0,0.00029038,30]
[367013328,1750618041424,-159.1115641,0.00029038,30]
[367013329,1750618041449,-574.6497757,0.00029038,30]
[367013330,1750618041478,-177.3077519,0.00029038,30]
[367013331,1750618041503,-159.1115641,0.00029038,30]
[367013332,1750618041528,-574.6497757,0.00029038,30]
[367013333,1750618041556,-177.3077519,0.00029038,30]
[367013334,1750618041582,-159.1115641,0.00029038,30]
[367013335,1750618041608,-574.6497757,0.00029038,30]
[367013336,1750618041634,-153.0,0.00029038,30]
[367013337,1750618041661,-188.717402,0.00029038,30]
[367013338,1750618041686,-574.6497757,0.00029038,30]
[367013339,1750618041712,-159.1115641,0.00029038,30]
[367013340,1750618041740,-159.1115641,0.00029038,30]
[367013341,1750618041768,-153.0,0.00029038,30]
[367013342,1750618041795,-574.6497757,0.00029038,30]
[367013343,1750618041821,-574.6497757,0.00029038,30]
[367013344,1750618041977,-159.1115641,0.00029038,30]
[367013345,1750618042039,-313.4183433,0.00029038,30]
[367013346,1750618042065,-159.1115641,0.00029038,30]
[367013347,1750618042091,-574.6497757,0.00029038,30]
[367013348,1750618042117,-433.6047609,0.00029038,30]
[367013349,1750618042144,-500.0,0.00029182,26]
[367013350,1750618042171,-1318.61,0.00029243,30]
[367013351,1750618042196,-500.0,0.00029382,26]
[367013352,1750618042224,-200.0,0.00029518,120]
[367013353,1750618042250,-500.0,0.00029582,14]
[367013354,1750618042275,-200.0,0.000296,25]
[367013355,1750618042300,-206.0,0.0002967,30]
[367013356,1750618042325,-500.0,0.00029782,13]
[367013357,1750618042351,-1112.0819,0.000298,120]
[367013358,1750618042377,-200.0,0.00029813,120]
[367013359,1750618042404,-159.1115641,0.0002988,30]
[367013360,1750618042431,-354.1047926,0.0002988,30]
[367013361,1750618042458,-574.6497757,0.0002988,30]
[367013362,1750618042487,-159.1115641,0.0002988,30]
[367013363,1750618042514,-159.1115641,0.0002988,30]
[367013364,1750618042544,-1064.1299177,0.0002988,30]
[367013365,1750618042570,-569.7109595,0.0002988,30]
[367013366,1750618042596,-200.0,0.00029931,120]
[367013367,1750618042625,-500.0,0.00029982,22]
[367013368,1750618042650,-401.83202303,0.0003,10]
[367013369,1750618042676,-1560.20488735,0.0003,10]
[367013370,1750618042702,-340.6375662,0.0003,10]
[367013371,1750618042728,-200.0,0.0003,120]
[367013372,1750618042755,-2000.0,0.0003,120]
[367013373,1750618042781,-199.999999,0.0003,30]
[367013374,1750618042808,-524.02598587,0.0003,120]
[367013375,1750618042835,-500.0,0.00030182,10]
[367013376,1750618042860,-160.0,0.00030365,10]
[367013377,1750618042885,-500.0,0.00030382,23]
[367013378,1750618042910,-153.0,0.00030428,30]
[367013379,1750618042935,-153.0,0.00030428,30]
[367013380,1750618042960,-153.0,0.00030428,30]
[367013381,1750618042985,-153.0,0.00030428,30]
[367013382,1750618043009,-153.0,0.00030428,30]
[367013383,1750618043035,-153.0,0.00030428,30]
[367013384,1750618043061,-1977.91,0.00030572,30]
[367013385,1750618043090,-1333.0,0.00030575,120]
[367013386,1750618043116,-500.0,0.00030582,23]
[367013387,1750618043144,-200.0,0.00030671,120]
[367013388,1750618043174,-1729.28,0.000307,31]
[367013389,1750618043204,-1729.28,0.000307,31]
[367013390,1750618043233,-1729.28,0.000307,31]
[367013391,1750618043263,-1729.28,0.000307,31]
[367013392,1750618043291,-1729.28,0.000307,31]
[367013393,1750618043321,-1729.28,0.000307,31]
[367013394,1750618043350,-1729.28,0.000307,31]
[367013395,1750618043377,-1729.28,0.000307,31]
[367013396,1750618043405,-1729.28,0.000307,31]
[367013397,1750618043433,-1729.28,0.000307,31]
[367013398,1750618043466,-1729.28,0.000307,31]
[367013399,1750618043496,-1729.28,0.000307,31]
[367013400,1750618043526,-1729.28,0.000307,31]
[367013401,1750618043559,-1729.28,0.000307,31]
[367013402,1750618043588,-1729.28,0.000307,31]
[367013403,1750618043617,-1729.28,0.000307,31]
[367013404,1750618043646,-1729.28,0.000307,31]
[367013405,1750618043675,-1729.28,0.000307,31]
[367013406,1750618043704,-1729.28,0.000307,31]
[367013407,1750618043734,-1729.28,0.000307,31]
[367013408,1750618043765,-1729.28,0.000307,31]
[367013409,1750618043795,-1729.28,0.000307,31]
[367013410,1750618043825,-1729.28,0.000307,31]
[367013411,1750618043855,-1729.28,0.000307,31]
[367013412,1750618043883,-177.307752,0.00030704,30]
[367013413,1750618043911,-159.1115641,0.00030704,30]
[367013414,1750618043939,-574.6497757,0.00030704,30]
[367013415,1750618043966,-307.5017373,0.00030704,30]
[367013416,1750618043993,-160.0,0.00030752,11]
[367013417,1750618044019,-500.0,0.00030782,11]
[367013418,1750618044045,-153.0,0.00030976,30]
[367013419,1750618044071,-500.0,0.00030982,29]
[367013420,1750618044096,-1000.0,0.00031,120]
[367013421,1750618044122,-160.0,0.00031,120]
[367013422,1750618044147,-160.0,0.00031,120]
[367013423,1750618044172,-836.56272071,0.00031,120]
[367013424,1750618044199,-160.0,0.00031,120]
[367013425,1750618044226,-425.01221603,0.00031,120]
[367013426,1750618044253,-230.14598372,0.00031,120]
[367013427,1750618044279,-160.0,0.00031,120]
[367013428,1750618044306,-206.0,0.0003103,30]
[367013429,1750618044332,-160.0,0.00031139,12]
[367013430,1750618044359,-500.0,0.00031182,25]
[367013431,1750618044385,-1112.0819,0.000312,120]
[367013432,1750618044412,-200.0,0.00031253,120]
[367013433,1750618044437,-200.0,0.0003131,29]
[367013434,1750618044466,-200.0,0.00031338,120]
[367013435,1750618044493,-500.0,0.00031382,28]
[367013436,1750618044519,-160.0,0.00031525,13]
[367013437,1750618044545,-153.0,0.000316,30]
[367013438,1750618044571,-153.0,0.000316,30]
[367013439,1750618044753,-153.0,0.000316,30]
[367013440,1750618044780,-153.0,0.000316,30]
[367013441,1750618044806,-574.6497757,0.000316,30]
[367013442,1750618044834,-153.0,0.000316,30]
[367013443,1750618044861,-574.6497757,0.00031607,30]
[367013444,1750618044888,-574.6497757,0.00031607,30]
[367013445,1750618044914,-153.0,0.00031607,30]
[367013446,1750618044942,-574.6497757,0.00031607,30]
[367013447,1750618044969,-318.2231282,0.00031607,30]
[367013448,1750618044995,-153.0,0.00031607,30]
[367013449,1750618045022,-365.8215413,0.00031607,30]
[367013450,1750618045047,-365.8215413,0.00031607,30]
[367013451,1750618045074,-153.0,0.00031607,30]
[367013452,1750618045100,-365.8215413,0.00031607,30]
[367013453,1750618045126,-153.0,0.00031607,30]
[367013454,1750618045153,-500.0,0.00031782,25]
[367013455,1750618045178,-2637.21,0.00031901,30]
[367013456,1750618045206,-200.0,0.00031912,120]
[367013457,1750618045233,-160.0,0.00031912,14]
[367013458,1750618045259,-500.0,0.00031982,27]
[367013459,1750618045288,-2000.0,0.00032,120]
[367013460,1750618045315,-1333.0,0.00032055,30]
[367013461,1750618045342,-500.0,0.00032182,12]
[367013462,1750618045370,-160.0,0.00032299,15]
[367013463,1750618045397,-206.0,0.0003238,30]
[367013464,1750618045424,-500.0,0.00032382,16]
[367013465,1750618045452,-200.0,0.00032403,120]
[367013466,1750618045482,-500.0,0.00032582,16]
[367013467,1750618045508,-1112.0819,0.000326,120]
[367013468,1750618045535,-160.0,0.00032686,16]
[367013469,1750618045564,-1729.28,0.000327,31]
[367013470,1750618045595,-1729.28,0.000327,31]
[367013471,1750618045625,-1729.28,0.000327,31]
[367013472,1750618045655,-1729.28,0.000327,31]
[367013473,1750618045686,-1729.28,0.000327,31]
[367013474,1750618045715,-1729.28,0.000327,31]
[367013475,1750618045745,-1729.28,0.000327,31]
[367013476,1750618045773,-1729.28,0.000327,31]
[367013477,1750618045803,-1729.28,0.000327,31]
[367013478,1750618045833,-1729.28,0.000327,31]
[367013479,1750618045861,-1729.28,0.000327,31]
[367013480,1750618045891,-1729.28,0.000327,31]
[367013481,1750618045920,-1729.28,0.000327,31]
[367013482,1750618045951,-1729.28,0.000327,31]
[367013483,1750618045980,-1729.28,0.000327,31]
[367013484,1750618046010,-1729.28,0.000327,31]
[367013485,1750618046041,-1729.28,0.000327,31]
[367013486,1750618046070,-1729.28,0.000327,31]
[367013487,1750618046100,-1729.28,0.000327,31]
[367013488,1750618046129,-1729.28,0.000327,31]
[367013489,1750618046158,-1729.28,0.000327,31]
[367013490,1750618046186,-1729.28,0.000327,31]
[367013491,1750618046219,-1729.28,0.000327,31]
[367013492,1750618046249,-1729.28,0.000327,31]
[367013493,1750618046276,-200.0,0.00032716,120]
[367013494,1750618046303,-200.0,0.00032728,120]
[367013495,1750618046329,-500.0,0.00032782,14]
[367013496,1750618046357,-200.0,0.00032854,120]
[367013497,1750618046385,-200.0,0.00032893,120]
[367013498,1750618046412,-500.0,0.00032982,54]
[367013499,1750618046437,-202.54012809,0.00033,21]
[367013500,1750618046470,-2111.0,0.00033,120]
[367013501,1750618046496,-1000.0,0.00033,120]
[367013502,1750618046523,-1000.0,0.00033,120]
[367013503,1750618046552,-200.0,0.0003303,34]
[367013504,1750618046580,-160.0,0.00033073,17]
[367013505,1750618046607,-200.0,0.00033081,120]
[367013506,1750618046634,-500.0,0.00033182,35]
[367013507,1750618046666,-3296.52,0.00033231,30]
[367013508,1750618046694,-500.0,0.00033382,87]
[367013509,1750618046724,-160.0,0.0003346,18]
[367013510,1750618046753,-531.99172302,0.00033534,14]
[367013511,1750618046781,-500.0,0.00033582,63]
[367013512,1750618046809,-200.0,0.00033703,120]
[367013513,1750618046839,-206.0,0.0003373,30]
[367013514,1750618046866,-500.0,0.00033782,89]
[367013515,1750618046893,-200.0,0.00033792,120]
[367013516,1750618046919,-209.72002,0.000338,120]
[367013517,1750618046946,-160.0,0.00033846,19]
[367013518,1750618046973,-312.0,0.00033945,24]
[367013519,1750618047003,-500.0,0.00033982,38]
[367013520,1750618047030,-200.0,0.00033997,120]
[367013521,1750618047057,-1112.0819,0.00034,120]
[367013522,1750618047086,-2000.0,0.00034,120]
[367013523,1750618047112,-500.0,0.00034182,78]
[367013524,1750618047138,-160.0,0.00034233,20]
[367013525,1750618047165,-200.0,0.00034346,120]
[367013526,1750618047192,-500.0,0.00034382,47]
[367013527,1750618047219,-152.0,0.00034537,15]
[367013528,1750618047245,-3955.82,0.0003456,30]
[367013529,1750618047272,-500.0,0.00034582,85]
[367013530,1750618047298,-160.0,0.0003462,21]
[367013531,1750618047329,-1729.28,0.000347,31]
[367013532,1750618047360,-1729.28,0.000347,31]
[367013533,1750618047571,-1729.28,0.000347,31]
[367013534,1750618047608,-1729.28,0.000347,31]
[367013535,1750618047640,-1729.28,0.000347,31]
[367013536,1750618047675,-1729.28,0.000347,31]
[367013537,1750618047712,-1729.28,0.000347,31]
[367013538,1750618047748,-1729.28,0.000347,31]
[367013539,1750618047781,-1729.28,0.000347,31]
[367013540,1750618047813,-1729.28,0.000347,31]
[367013541,1750618047845,-1729.28,0.000347,31]
[367013542,1750618047877,-1729.28,0.000347,31]
[367013543,1750618047912,-1729.28,0.000347,31]
[367013544,1750618047944,-1729.28,0.000347,31]
[367013545,1750618047977,-1729.28,0.000347,31]
[367013546,1750618048009,-1729.28,0.000347,31]
[367013547,1750618048036,-1341.32310674,0.00034728,12]
[367013548,1750618048064,-200.0,0.0003474,39]
[367013549,1750618048093,-500.0,0.00034782,30]
[367013550,1750618048119,-500.0,0.00034982,60]
[367013551,1750618048147,-2111.0,0.00035,120]
[367013552,1750618048176,-210.76281135,0.00035,30]
[367013553,1750618048204,-534.56594019,0.00035,30]
[367013554,1750618048232,-1000.0,0.00035,120]
[367013555,1750618048258,-200.0,0.00035,120]
[367013556,1750618048284,-160.0,0.00035007,22]
[367013557,1750618048311,-1333.0,0.00035014,90]
[367013558,1750618048339,-206.0,0.0003509,30]
[367013559,1750618048367,-152.0,0.00035144,15]
[367013560,1750618048393,-500.0,0.00035182,56]
[367013561,1750618048420,-500.0,0.00035382,85]
[367013562,1750618048446,-160.0,0.00035394,23]
[367013563,1750618048475,-1112.0819,0.000354,120]
[367013564,1750618048503,-500.0,0.00035582,67]
[367013565,1750618048530,-152.0,0.0003575,15]
[367013566,1750618048561,-200.0,0.00035754,120]
[367013567,1750618048590,-160.0,0.00035781,24]
[367013568,1750618048617,-500.0,0.00035782,31]
[367013569,1750618048645,-4615.12,0.00035889,30]
[367013570,1750618048673,-500.0,0.00035982,56]
[367013571,1750618048701,-153.0,0.00036,120]
[367013572,1750618048726,-4000.0,0.00036,90]
[367013573,1750618048753,-2000.0,0.00036,120]
[367013574,1750618048780,-200.0,0.00036062,120]
[367013575,1750618048807,-500.0,0.00036182,71]
[367013576,1750618048835,-152.0,0.00036357,15]
[367013577,1750618048861,-500.0,0.00036382,63]
[367013578,1750618048887,-206.0,0.0003644,30]
[367013579,1750618048913,-200.0,0.0003645,43]
[367013580,1750618048939,-952.44530466,0.00036493,120]
[367013581,1750618048964,-500.0,0.00036582,67]
[367013582,1750618048992,-200.0,0.00036668,120]
[367013583,1750618049017,-500.0,0.00036782,78]
[367013584,1750618049043,-200.0,0.00036784,120]
[367013585,1750618049069,-1112.0819,0.000368,120]
[367013586,1750618049096,-152.0,0.00036963,15]
[367013587,1750618049122,-500.0,0.00036982,86]
[367013588,1750618049147,-2111.0,0.00037,120]
[367013589,1750618049174,-1000.0,0.00037,120]
[367013590,1750618049200,-95373.32,0.00037,14]
[367013591,1750618049227,-200.0,0.00037072,120]
[367013592,1750618049254,-500.0,0.00037182,68]
[367013593,1750618049281,-5274.43,0.00037218,30]
[367013594,1750618049309,-500.0,0.00037382,58]
[367013595,1750618049337,-500.0,0.000375,15]
[367013596,1750618049364,-500.0,0.000375,15]
[367013597,1750618049391,-500.0,0.000375,15]
[367013598,1750618049418,-326.15,0.000375,15]
[367013599,1750618049445,-4195.93048452,0.000375,120]
[367013600,1750618049474,-152.0,0.0003757,15]
[367013601,1750618049501,-500.0,0.00037582,79]
[367013602,1750618049531,-1015.09351483,0.000376,10]
[367013603,1750618049563,-500.0,0.00037782,80]
[367013604,1750618049592,-206.0,0.0003779,30]
[367013605,1750618049618,-500.0,0.00037982,83]
[367013606,1750618049646,-2000.0,0.00038,120]
[367013607,1750618049672,-445.30045617,0.00038,30]
[367013608,1750618049698,-300.0,0.00038,120]
[367013609,1750618049725,-7901.74155792,0.00038,30]
[367013610,1750618049752,-212.0,0.0003817,48]
[367013611,1750618049780,-152.0,0.00038176,15]
[367013612,1750618049807,-500.0,0.00038182,35]
[367013613,1750618049835,-1112.08197,0.000382,120]
[367013614,1750618049863,-500.0,0.00038382,120]
[367013615,1750618049891,-200.0,0.00038408,120]
[367013616,1750618049919,-200.0,0.00038434,120]
[367013617,1750618049946,-110797.05745155,0.000385,120]